bitfinex-derivatives/quotes_SOLF0:USTF0_20260202
["timestamp","ask_amount","ask_price","bid_price","bid_amount"]
[1770072516372,3.82925758,104.98,104.93,380.16]
[1770072516577,3.82925758,104.98,104.93,388.7451]
[1770072517775,3.82925758,104.98,104.94,0.07299652]
[1770072519579,3.82925758,104.98,104.94,8.65729652]
[1770072534487,12.32570632,104.99,104.94,8.65729652]
[1770072537690,3.74520632,104.98,104.94,8.65729652]
[1770072540491,11.48576752,105.0,104.94,8.65729652]
[1770072540796,166.4353,105.02,104.96,0.19871783]
[1770072540797,3.74520632,105.02,104.96,0.19871783]
[1770072540985,6.65127384,105.02,104.96,0.19871783]
[1770072541391,15.22937384,105.02,104.96,8.78091783]
[1770072541595,15.22937384,105.02,104.97,0.19871783]
[1770072542593,6.65127384,105.02,104.97,8.78031783]
[1770072544598,3.74520632,105.01,104.97,0.19871783]
[1770072545195,6.65127384,105.01,104.97,0.19871783]
[1770072545497,15.23007384,105.01,104.97,0.19871783]
[1770072545895,6.65127384,105.01,104.97,0.19871783]
[1770072546798,6.65127384,105.01,104.96,8.5822]
[1770072547300,6.65127384,105.01,104.96,8.80638844]
[1770072550193,3.74520632,105.0,104.96,8.80638844]
[1770072550997,3.74520632,105.0,104.96,8.5822]
[1770072553297,3.74520632,105.0,104.95,8.78961976]
[1770072557208,3.74520632,105.0,104.96,0.42370189]
[1770072559509,12.32490632,105.0,104.96,0.42370189]
[1770072560510,3.74520632,105.0,104.96,0.42370189]
[1770072566618,3.74520632,105.0,104.95,9.14565812]
[1770072567014,3.74520632,105.0,104.95,8.5836]
[1770072568719,3.74520632,105.0,104.96,0.56329054]
[1770072568917,12.32480632,105.0,104.96,0.56329054]
[1770072569114,12.32480632,105.0,104.95,8.5836]
[1770072569310,12.32480632,105.0,104.95,9.14689054]
[1770072573518,2.90521429,105.01,104.92,513.6803]
[1770072573519,2.90521429,105.01,104.96,0.53819024]
[1770072574420,6.53574747,105.01,104.96,0.53819024]
[1770072574621,3.63053318,105.0,104.96,0.53819024]
[1770072576426,3.63053318,105.0,104.96,9.12069024]
[1770072577625,3.63053318,104.96,104.9,3.38723177]
[1770072578230,12.21343318,104.96,104.91,8.5869]
[1770072578429,6.53574747,104.95,104.9,3.38723177]
[1770072579530,6.53574747,104.95,104.9,11.97423177]
[1770072580430,6.53574747,104.95,104.91,8.5868]
[1770072583929,3.63053318,104.95,104.91,11.97403177]
[1770072584130,6.53574747,104.97,104.92,11.97323177]
[1770072584634,6.53574747,104.97,104.93,8.5852]
[1770072587638,6.53574747,104.97,104.93,11.97243177]
[1770072590833,6.45334131,104.99,104.94,8.5841]
[1770072591039,6.45334131,104.99,104.95,3.47224849]
[1770072591840,6.45334131,104.99,104.95,12.05564849]
[1770072601649,6.45334131,104.99,104.95,8.5834]
[1770072603551,6.45334131,104.97,104.92,3.47224849]
[1770072603850,3.54812702,104.96,104.9,3.47224849]
[1770072604045,133.4864,104.98,104.9,3.47224849]
[1770072604046,15.03694131,104.95,104.9,3.47224849]
[1770072604251,3.54812702,104.94,104.9,3.47224849]
[1770072609057,3.54812702,104.93,104.88,3.47224849]
[1770072610555,12.13342702,104.93,104.88,3.47224849]
[1770072613758,3.54812702,104.93,104.88,12.06154849]
[1770072617552,3.54812702,104.93,104.85,136.55351756]
[1770072617553,3.54812702,104.9,104.85,3.47224849]
[1770072617754,3.54812702,104.89,104.85,3.47224849]
[1770072619254,2.90921756,104.9,104.85,3.47224849]
[1770072620059,3.54812702,104.91,104.87,3.73810992]
[1770072622162,12.13512702,104.91,104.87,3.73810992]
[1770072622863,3.54812702,104.91,104.87,3.73810992]
[1770072626267,2.90921756,104.9,104.87,3.73810992]
[1770072628264,6.46468123,104.9,104.86,8.5906]
[1770072630271,6.46468123,104.88,104.83,3.73810992]
[1770072630468,3.55546367,104.87,104.83,3.73810992]
[1770072632068,2.90921756,104.9,104.85,12.32970992]
[1770072632567,6.46468123,104.9,104.85,3.73810992]
[1770072633672,3.55546367,104.89,104.84,8.5925]
[1770072633871,2.90921756,104.88,104.84,8.5925]
[1770072634470,2.90921756,104.88,104.83,12.33150992]
[1770072634969,6.46468123,104.88,104.83,12.33150992]
[1770072640379,6.46468123,104.88,104.84,8.5926]
[1770072640675,6.46468123,104.88,104.84,12.33070992]
[1770072643781,33.0,104.91,104.86,3.73810992]
[1770072645478,33.0,104.91,104.87,8.5901]
[1770072646680,33.0,104.91,104.86,12.32890992]
[1770072648480,36.55546367,104.91,104.86,12.32890992]
[1770072648680,3.55546367,104.91,104.86,12.32890992]
[1770072650484,12.14236367,104.91,104.86,12.32890992]
[1770072658590,3.55546367,104.91,104.86,12.32890992]
[1770072665300,3.55546367,104.91,104.87,12.00565624]
[1770072665508,2.90921756,104.92,104.88,3.41555624]
[1770072667802,2.90921756,104.92,104.87,8.5901]
[1770072667803,33.0,104.94,104.89,3.41555624]
[1770072668008,6.59246763,104.95,104.89,3.41555624]
[1770072668509,6.59246763,104.95,104.9,3.41555624]
[1770072670410,6.59246763,104.95,104.91,8.5868]
[1770072672512,6.59133911,104.95,104.91,8.5868]
[1770072675516,3.68325007,104.95,104.91,8.5868]
[1770072679617,3.68325007,104.95,104.91,12.00235624]
[1770072687216,3.68325007,104.95,104.91,3.41555624]
[1770072688326,3.68325007,104.95,104.91,12.00235624]
[1770072691723,11.49088904,104.96,104.91,12.00235624]
[1770072691930,15.18748655,104.96,104.92,3.60327935]
[1770072692726,3.69659751,104.95,104.91,12.19007935]
[1770072696027,3.69659751,104.95,104.91,3.60327935]
[1770072696630,3.69659751,104.95,104.91,12.18997935]
[1770072699127,2.90808904,104.94,104.91,3.60327935]
[1770072711437,2.90808904,104.94,104.9,12.09416958]
[1770072714044,2.90808904,104.94,104.91,3.50656958]
[1770072719544,10.22944851,104.96,104.92,3.50656958]
[1770072719849,2.90808904,104.96,104.92,3.50656958]
[1770072720243,6.5231491,104.96,104.92,3.50656958]
[1770072721050,6.5231491,104.96,104.87,136.53138904]
[1770072721051,12.19886006,104.95,104.9,3.50656958]
[1770072721251,2.90808904,104.94,104.9,3.50656958]
[1770072722349,11.49258904,104.94,104.9,3.50656958]
[1770072723147,2.90808904,104.94,104.9,3.50656958]
[1770072724560,6.5231491,104.94,104.9,3.50656958]
[1770072725459,15.1076491,104.94,104.9,3.50656958]
[1770072725656,2.90808904,104.96,104.9,3.50656958]
[1770072726144,15.1061491,104.96,104.91,3.50656958]
[1770072728352,3.61506006,104.95,104.91,3.50656958]
[1770072728755,12.19876006,104.95,104.91,3.50656958]
[1770072728951,3.61506006,104.95,104.91,3.50656958]
[1770072729257,6.5231491,104.95,104.91,3.50656958]
[1770072734358,6.52325148,104.95,104.91,3.50656958]
[1770072735256,3.61506006,104.95,104.91,3.50656958]
[1770072735459,6.52325148,104.95,104.91,3.50656958]
[1770072743873,6.52325148,104.95,104.91,12.09286958]
[1770072746068,2.90819142,104.95,104.92,12.14233347]
[1770072748573,2.90819142,104.95,104.93,3.55633347]
[1770072749381,2.90819142,104.95,104.91,12.14293347]
[1770072749679,2.90819142,104.95,104.92,3.55633347]
[1770072749976,15.00885442,104.95,104.9,12.14393347]
[1770072750174,15.00885442,104.95,104.9,3.55633347]
[1770072750175,3.516963,104.94,104.9,3.55633347]
[1770072750776,8.5853,104.93,104.9,3.55633347]
[1770072751779,8.5853,104.93,104.88,8.5893]
[1770072751780,15.01045442,104.93,104.88,12.14563347]
[1770072753678,15.01045442,104.93,104.88,3.55633347]
[1770072758489,12.103063,104.92,104.88,3.55633347]
[1770072758792,12.103063,104.92,104.87,3.55633347]
[1770072761989,12.103063,104.92,104.87,12.14643347]
[1770072762692,3.516963,104.92,104.87,12.14643347]
[1770072766393,3.516963,104.92,104.88,12.14503347]
[1770072773899,2.90819142,104.93,104.89,3.53219898]
[1770072774299,6.6249984,104.93,104.89,3.53219898]
[1770072778899,6.6249984,104.93,104.89,12.12039898]
[1770072780800,6.6249984,104.93,104.89,3.53219898]
[1770072781000,3.71680698,104.92,104.88,12.12129898]
[1770072781502,3.71680698,104.92,104.88,8.5891]
[1770072781800,6.6249984,104.91,104.87,12.12229898]
[1770072781996,6.6249984,104.91,104.84,136.56299142]
[1770072782200,3.71680698,104.9,104.85,3.53219898]
[1770072784302,3.71680698,104.9,104.85,12.12369898]
[1770072786794,12.30480698,104.9,104.85,3.53219898]
[1770072790198,3.71680698,104.89,104.85,3.53219898]
[1770072792600,6.6249984,104.89,104.85,3.53219898]
[1770072794502,6.62836698,104.89,104.85,3.53219898]
[1770072796202,15.21726698,104.89,104.85,3.53219898]
[1770072796402,6.62836698,104.89,104.85,3.53219898]
[1770072800101,3.68052071,104.88,104.84,8.5925]
[1770072801206,3.68052071,104.88,104.84,12.09739922]
[1770072803508,3.68052071,104.88,104.84,3.50489922]
[1770072803710,2.91156,104.87,104.84,3.50489922]
[1770072804406,6.59208071,104.87,104.82,12.09899922]
[1770072804805,6.59208071,104.87,104.83,3.50489922]
[1770072820222,15.18278071,104.87,104.83,3.50489922]
[1770072822828,6.59208071,104.87,104.83,3.50489922]
[1770072824029,3.68052071,104.86,104.82,8.5941]
[1770072824632,3.68052071,104.86,104.82,12.09899922]
[1770072835941,417.00234075,104.9,104.84,8.5924]
[1770072836144,2.91156,104.89,104.85,3.39864417]
[1770072837034,6.37390075,104.89,104.85,3.39864417]
[1770072843253,3.46234075,104.89,104.85,11.99044417]
[1770072855357,14.96160075,104.9,104.85,11.99044417]
[1770072856364,14.96131425,104.9,104.85,11.99044417]
[1770072859162,6.37361425,104.9,104.86,3.39864417]
[1770072859366,2.9112735,104.9,104.87,3.39864417]
[1770072862064,14.99221919,104.91,104.87,3.39864417]
[1770072862666,6.40531919,104.91,104.87,3.39864417]
[1770072865969,6.40531919,104.91,104.87,11.98874417]
[1770072866170,2.9112735,104.91,104.87,11.98874417]
[1770072866465,14.99151919,104.92,104.88,3.41000117]
[1770072866670,3.49404569,104.92,104.88,11.99930117]
[1770072867263,2.9112735,104.93,104.88,11.99930117]
[1770072867462,2.9112735,104.93,104.89,3.41000117]
[1770072867869,6.40531919,104.93,104.89,3.41000117]
[1770072869370,3.49404569,104.93,104.89,3.41000117]
[1770072870274,11.4963735,104.94,104.9,3.41000117]
[1770072870275,2.9112735,104.94,104.9,3.41000117]
[1770072871072,6.40531919,104.94,104.9,3.41000117]
[1770072872472,6.40531919,104.94,104.9,11.99760117]
[1770072872669,6.40531919,104.95,104.9,3.41000117]
[1770072872870,3.49404569,104.95,104.9,3.41000117]
[1770072873073,3.49404569,104.95,104.91,11.99620117]
[1770072873478,2.9112735,104.96,104.92,3.41000117]
[1770072873773,3.49404569,104.97,104.92,3.41000117]
[1770072873971,2.9112735,104.98,104.92,133.5606]
[1770072874281,6.40531919,104.99,104.93,3.41000117]
[1770072875280,6.40531919,104.99,104.94,11.99370117]
[1770072877880,2.9112735,104.98,104.94,11.99370117]
[1770072882176,2.9112735,104.98,104.94,3.41000117]
[1770072885780,6.40531919,104.98,104.94,3.41000117]
[1770072887182,6.40531919,104.98,104.94,11.99430117]
[1770072894495,1.919e-05,104.98,104.95,8.5833]
[1770072899193,2.9112735,104.99,104.95,12.20805264]
[1770072903902,2.9112735,104.99,104.95,3.62475264]
[1770072904102,11.97829765,105.0,104.94,8.5843]
[1770072904103,6.30977115,104.98,104.94,8.5843]
[1770072904300,2.9112735,104.97,104.94,8.5843]
[1770072904899,6.30977115,104.98,104.94,8.5843]
[1770072905101,6.30977115,104.98,104.93,12.20985264]
[1770072906704,14.89097115,104.98,104.93,12.20985264]
[1770072907705,6.30977115,104.98,104.93,12.20985264]
[1770072908203,6.30977115,104.98,104.94,3.62475264]
[1770072910503,6.30977115,104.98,104.94,12.20905264]
[1770072912210,2.9112735,104.99,104.96,8.5827]
[1770072914608,6.30977115,104.99,104.96,8.5827]
[1770072915305,6.30977115,104.99,104.95,12.20815264]
[1770072915911,6.30977115,104.97,104.93,3.62475264]
[1770072916108,3.39849765,104.96,104.91,3.62475264]
[1770072916301,3.39849765,104.96,104.92,8.586]
[1770072916507,6.30621559,104.96,104.92,12.21075264]
[1770072917007,3.39849765,104.95,104.9,12.21185264]
[1770072917211,2.90771794,104.94,104.9,12.21185264]
[1770072917808,6.30621559,104.94,104.89,8.5883]
[1770072918311,14.89071559,104.94,104.89,8.5883]
[1770072918711,14.89071559,104.94,104.88,3.62475264]
[1770072919815,3.39849765,104.94,104.89,3.62475264]
[1770072920008,2.90771794,104.93,104.89,3.62475264]
[1770072922614,14.93332475,104.93,104.89,3.62475264]
[1770072924520,8.5861,104.92,104.89,3.62475264]
[1770072924714,12.02630681,104.92,104.87,12.30783657]
[1770072924914,12.02630681,104.92,104.87,3.71783657]
[1770072926918,3.44020681,104.92,104.87,12.30793657]
[1770072929819,3.44020681,104.92,104.88,3.71783657]
[1770072937830,6.34792475,104.92,104.88,3.71783657]
[1770072942327,6.34792475,104.92,104.87,8.5901]
[1770072942632,3.44020681,104.91,104.87,8.5901]
[1770072942832,3.44020681,104.91,104.87,12.30793657]
[1770072945231,3.44020681,104.91,104.87,3.71783657]
[1770072946331,3.44020681,104.91,104.87,12.30793657]
[1770072948437,2.90771794,104.9,104.87,3.71783657]
[1770072956154,14.9191602,104.9,104.86,3.43029662]
[1770072960154,12.01244226,104.89,104.84,12.02279662]
[1770072960353,12.01244226,104.89,104.85,3.43029662]
[1770072964252,3.26675965,104.88,104.83,12.02349662]
[1770072964661,3.26675965,104.88,104.84,3.43029662]
[1770072965165,6.17447759,104.88,104.84,3.43029662]
[1770072966665,14.76377759,104.88,104.84,3.43029662]
[1770072967166,2.90771794,104.88,104.84,3.43029662]
[1770072978177,5.85286933,104.88,104.84,3.43029662]
[1770072978368,5.85719321,104.88,104.84,3.43029662]
[1770072979870,5.85719321,104.88,104.84,12.02269662]
[1770072987281,2.91204182,104.88,104.85,3.57092105]
[1770072987580,14.56517275,104.89,104.85,3.57092105]
[1770072988182,2.91204182,104.88,104.85,3.57092105]
[1770072988577,5.97689493,104.88,104.84,12.16332105]
[1770072989583,5.97689493,104.88,104.84,3.57092105]
[1770072994387,5.97689493,104.88,104.85,8.5915]
[1770072997389,5.97689493,104.88,104.84,12.16332105]
[1770072998395,3.06485311,104.88,104.84,12.16332105]
[1770073012600,2.91204182,104.89,104.85,12.08510782]
[1770073012994,6.02758056,104.89,104.85,12.08510782]
[1770073017008,3.11553874,104.89,104.85,12.08510782]
[1770073018204,11.50024182,104.9,104.85,12.08510782]
[1770073018394,14.59700349,104.9,104.85,12.08510782]
[1770073023605,8.5887,104.89,104.85,12.08510782]
[1770073028414,11.68051236,104.89,104.85,12.08510782]
[1770073030308,3.09231817,104.88,104.85,8.5915]
[1770073030508,3.09231817,104.88,104.78,133.731]
[1770073030509,133.6519,104.85,104.76,37.87610765]
[1770073030709,2.91204182,104.83,104.76,14.03814221]
[1770073031013,193.25204182,104.84,104.76,16.95018403]
[1770073031212,133.6405,104.86,104.78,16.95018403]
[1770073031213,136.55254182,104.86,104.78,16.95018403]
[1770073031412,380.5,104.86,104.8,14.03814221]
[1770073031613,380.5,104.86,104.8,16.95018403]
[1770073031914,8.6859331,104.85,104.8,14.03814221]
[1770073032114,389.0915,104.86,104.8,14.03814221]
[1770073032115,8.6859331,104.84,104.8,14.03814221]
[1770073032319,392.00354182,104.86,104.8,14.03814221]
[1770073032615,8.68080118,104.85,104.8,14.03814221]
[1770073032914,8.68080118,104.84,104.8,14.03814221]
[1770073033110,392.00354182,104.86,104.8,14.03814221]
[1770073033314,8.68080118,104.85,104.8,14.03814221]
[1770073033515,392.00354182,104.86,104.8,14.03814221]
[1770073033713,8.67921315,104.85,104.8,14.03814221]
[1770073033915,392.00354182,104.86,104.8,14.03814221]
[1770073034213,8.67921315,104.85,104.8,14.03814221]
[1770073034411,392.00354182,104.86,104.8,14.03814221]
[1770073034612,8.67642512,104.85,104.8,14.03814221]
[1770073034812,392.00354182,104.86,104.8,14.03814221]
[1770073035014,8.67642512,104.85,104.8,14.03814221]
[1770073035310,142.2571,104.84,104.74,142.3883]
[1770073035516,2.91204182,104.8,104.75,14.12956721]
[1770073036217,380.54,104.81,104.75,14.12956721]
[1770073036415,383.45204182,104.81,104.75,14.12956721]
[1770073038415,383.45601864,104.81,104.75,14.12956721]
[1770073039212,2.91601864,104.81,104.75,14.12956721]
[1770073040317,2.91601864,104.83,104.77,14.17784163]
[1770073045313,2.91601864,104.82,104.77,14.17784163]
[1770073048928,2.91601864,104.82,104.78,14.07825276]
[1770073049726,2.91601864,104.81,104.77,14.07825276]
[1770073054326,2.91601864,104.8,104.77,14.07825276]
[1770073054730,2.91601864,104.81,104.77,14.07825276]
[1770073058135,2.91601864,104.8,104.77,14.07825276]
[1770073058734,2.91601864,104.79,104.75,22.66809121]
[1770073059232,2.91601864,104.79,104.76,14.06819121]
[1770073060735,2.91601864,104.78,104.75,8.5999]
[1770073061334,2.91601864,104.77,104.74,22.65839832]
[1770073062127,2.91601864,104.78,104.75,14.05614357]
[1770073062332,2.91601864,104.78,104.75,22.65614357]
[1770073062526,2.91601864,104.78,104.73,14.05614357]
[1770073062732,2.91601864,104.77,104.73,14.05614357]
[1770073064334,2.91601864,104.77,104.74,14.05133815]
[1770073067833,2.91601864,104.77,104.74,22.65193815]
[1770073068539,2.91601864,104.77,104.74,14.05133815]
[1770073071338,2.91601864,104.78,104.74,14.05133815]
[1770073071940,2.91601864,104.77,104.74,14.05133815]
[1770073073239,2.91601864,104.78,104.74,14.05133815]
[1770073075933,380.86,104.8,104.74,14.05133815]
[1770073076132,380.86,104.8,104.76,22.76614492]
[1770073076133,383.77601864,104.8,104.76,22.76614492]
[1770073080035,2.91601864,104.8,104.76,22.76614492]
[1770073084041,2.91601864,104.83,104.77,14.21369995]
[1770073084539,2.91601864,104.83,104.8,14.21369995]
[1770073085244,204.47781356,104.88,104.8,14.21369995]
[1770073085245,2.91601864,104.84,104.8,14.21369995]
[1770073086444,2.91601864,104.84,104.8,22.80939995]
[1770073087345,2.91601864,104.83,104.8,22.80939995]
[1770073087740,2.91601864,104.84,104.8,22.80939995]
[1770073090535,2.91601864,104.84,104.81,14.21645903]
[1770073092243,2.91422936,104.84,104.81,14.21645903]
[1770073092641,2.91422936,104.85,104.82,14.04520565]
[1770073093447,2.91422936,104.86,104.82,14.04520565]
[1770073094445,2.91422936,104.86,104.82,22.63940565]
[1770073094948,2.91422936,104.85,104.82,22.63940565]
[1770073100455,2.91371621,104.85,104.82,22.63940565]
[1770073105058,8.5903,104.87,104.82,22.63940565]
[1770073105258,2.91371621,104.85,104.82,22.63940565]
[1770073108365,2.91371621,104.85,104.82,14.04520565]
[1770073120872,11.50551621,104.85,104.82,14.04520565]
[1770073126673,8.5911,104.86,104.82,14.04520565]
[1770073126868,380.68,104.89,104.83,12.5294485]
[1770073127071,2.91371621,104.88,104.83,12.5294485]
[1770073127371,2.91371621,104.89,104.85,11.07259039]
[1770073127568,2.91371621,104.9,104.85,11.07259039]
[1770073127873,2.91371621,104.9,104.84,133.6623]
[1770073127874,2.91371621,104.91,104.87,11.06373442]
[1770073128273,2.91371621,104.92,104.87,11.06373442]
[1770073128776,2.91371621,104.92,104.88,11.06373442]
[1770073130573,2.91371621,104.93,104.89,11.09318468]
[1770073130768,2.91371621,104.94,104.89,11.09318468]
[1770073130971,2.91371621,104.94,104.9,11.09318468]
[1770073133879,2.91371621,104.95,104.9,11.09318468]
[1770073134883,2.91371621,104.96,104.91,11.06102595]
[1770073135282,2.91371621,104.97,104.91,11.06102595]
[1770073135874,2.91371621,104.98,104.92,11.06102595]
[1770073137283,2.91371621,104.98,104.93,11.02873918]
[1770073138081,8.5804,104.99,104.93,11.02873918]
[1770073138278,383.43371621,105.0,104.94,11.02968269]
[1770073138579,2.91371621,105.01,104.95,11.02968269]
[1770073138883,11.49161621,105.02,104.96,11.02968269]
[1770073139179,2.91371621,105.03,104.97,11.02968269]
[1770073139582,2.91371621,105.02,104.97,11.02968269]
[1770073142686,2.91371621,105.01,104.97,11.02968269]
[1770073144480,2.91371621,104.98,104.93,10.92271806]
[1770073144685,2.91371621,104.96,104.9,10.92271806]
[1770073144887,2.91371621,104.95,104.9,10.92271806]
[1770073145191,2.91371621,104.93,104.87,10.92271806]
[1770073145690,2.91371621,104.92,104.87,10.92271806]
[1770073146283,2.91371621,104.92,104.89,10.72808596]
[1770073149097,8.5844,104.94,104.87,10.70668541]
[1770073149098,2.91371621,104.9,104.87,10.70668541]
[1770073149293,2.91371621,104.89,104.87,10.70668541]
[1770073149695,2.91371621,104.89,104.85,10.70668541]
[1770073149993,2.91371621,104.88,104.85,10.70668541]
[1770073150199,2.91371621,104.87,104.85,10.70668541]
[1770073150392,2.91371621,104.89,104.85,10.70668541]
[1770073153200,2.91371621,104.88,104.85,10.70668541]
[1770073153495,2.91371621,104.88,104.83,10.70770006]
[1770073153693,2.91371621,104.87,104.83,10.70770006]
[1770073155297,2.91371621,104.87,104.83,19.30090006]
[1770073155897,2.91371621,104.88,104.83,10.70770006]
[1770073156193,114.54,104.91,104.86,10.73217462]
[1770073156397,2.91371621,104.92,104.86,10.73217462]
[1770073156796,2.91371621,104.91,104.86,10.73217462]
[1770073157295,2.91371621,104.91,104.87,8.5901]
[1770073159197,2.91371621,104.91,104.86,10.73217462]
[1770073160402,2.91038374,104.91,104.86,10.73217462]
[1770073168096,2.91038374,104.91,104.87,8.5899]
[1770073168300,2.91038374,104.92,104.88,10.81010504]
[1770073168504,2.91038374,104.93,104.88,10.81010504]
[1770073168699,11.49408374,104.95,104.9,10.81010504]
[1770073170307,11.49498374,104.94,104.9,10.81010504]
[1770073170604,2.91038374,104.93,104.9,10.81010504]
[1770073173308,8.5837,104.95,104.9,10.81010504]
[1770073173509,133.4912,104.98,104.9,10.81010504]
[1770073173812,2.91038374,104.96,104.92,9.36263033]
[1770073174211,2.91038374,104.97,104.92,9.36263033]
[1770073175309,2.91038374,104.97,104.93,9.36212342]
[1770073176713,2.91038374,104.95,104.91,8.5868]
[1770073176912,2.91038374,104.96,104.91,8.5868]
[1770073178218,2.91038374,104.94,104.9,8.5876]
[1770073178613,2.91038374,104.94,104.9,13.31863766]
[1770073179217,2.91038374,104.94,104.91,4.73103766]
[1770073180820,11.49408374,104.95,104.91,4.73103766]
[1770073182819,2.91038374,104.95,104.91,4.73103766]
[1770073183021,2.91038374,104.97,104.92,4.74685726]
[1770073184317,11.49258374,104.97,104.92,13.33275726]
[1770073185318,2.91038374,104.97,104.93,4.74663774]
[1770073185517,2.91038374,104.97,104.93,13.33173774]
[1770073185723,2.91038374,104.98,104.94,4.74663774]
[1770073186624,2.91038374,104.98,104.94,13.33103774]
[1770073189631,2.91038374,104.98,104.95,4.76740395]
[1770073195337,11.49088374,104.99,104.95,4.76740395]
[1770073200236,2.91038374,104.99,104.95,4.76740395]
[1770073200439,2.91038374,105.02,104.96,4.80486008]
[1770073200937,1.65753751,105.04,104.97,4.80486008]
[1770073201137,2.91038374,105.05,104.98,4.80486008]
[1770073201331,2.91038374,105.02,104.98,4.80486008]
[1770073201941,2.91038374,105.01,104.96,4.80486008]
[1770073202234,2.91038374,105.01,104.97,13.3937903]
[1770073202435,2.91038374,105.0,104.97,4.8118903]
[1770073202634,2.91038374,104.99,104.93,133.5448]
[1770073203234,2.91038374,105.0,104.96,8.5826]
[1770073203438,11.27374422,105.02,104.96,8.5826]
[1770073203439,2.91038374,104.99,104.96,8.5826]
[1770073203738,2.91038374,104.99,104.93,133.5448]
[1770073204039,2.91038374,104.99,104.95,8.5835]
[1770073204741,2.91038374,104.99,104.95,12.20641535]
[1770073205443,2.91038374,104.99,104.95,3.62291535]
[1770073205638,2.91038374,104.98,104.95,3.62291535]
[1770073207234,2.91038374,104.96,104.93,3.62291535]
[1770073207438,2.91038374,104.95,104.91,3.62291535]
[1770073207639,2.91038374,104.95,104.89,3.62291535]
[1770073207640,2.86801418,104.95,104.89,3.62291535]
[1770073207837,2.91038374,104.92,104.89,3.62291535]
[1770073209240,2.91038374,104.93,104.89,3.62291535]
[1770073209845,2.91038374,104.93,104.88,8.5886]
[1770073209846,2.91038374,104.91,104.86,3.62291535]
[1770073210041,2.91038374,104.89,104.86,3.62291535]
[1770073210342,2.75610976,104.91,104.84,8.5918]
[1770073210343,2.91038374,104.88,104.84,12.21471535]
[1770073210543,2.91038374,104.89,104.84,12.21471535]
[1770073211340,2.91038374,104.9,104.85,12.21461535]
[1770073211547,2.91038374,104.91,104.86,3.62291535]
[1770073211744,2.91038374,104.92,104.86,3.62291535]
[1770073213150,2.90873805,104.94,104.88,3.62291535]
[1770073214541,187.12810115,104.95,104.88,12.21221535]
[1770073215941,187.12810115,104.95,104.89,12.21141535]
[1770073222549,178.54380115,104.95,104.9,12.04637576]
[1770073223844,178.54380115,104.95,104.9,3.45867576]
[1770073226856,2.74380115,104.95,104.9,3.45867576]
[1770073227757,2.7201851,104.95,104.9,3.45867576]
[1770073228257,11.3037851,104.95,104.9,3.45867576]
[1770073229155,8.5845,104.94,104.89,8.5884]
[1770073229758,2.40482998,104.93,104.89,8.5884]
[1770073230549,2.26713833,104.92,104.87,3.45867576]
[1770073230955,10.85403833,104.91,104.85,12.04977576]
[1770073231457,2.26713833,104.9,104.85,12.04977576]
[1770073231764,2.26713833,104.89,104.84,8.5925]
[1770073231959,2.26713833,104.89,104.83,3.45867576]
[1770073232459,2.25311301,104.88,104.83,12.05197576]
[1770073232953,2.25311301,104.88,104.81,3.45867576]
[1770073234359,2.91272188,104.86,104.82,8.5941]
[1770073235759,5.19615605,104.87,104.82,8.5941]
[1770073236953,2.91272188,104.86,104.82,8.5941]
[1770073237153,2.91272188,104.85,104.81,3.45867576]
[1770073237556,2.2901593,104.86,104.81,12.05367576]
[1770073237757,5.20288118,104.86,104.81,12.05367576]
[1770073239557,2.91272188,104.85,104.81,12.05367576]
[1770073240860,5.2033726,104.85,104.81,8.595]
[1770073241562,2.91272188,104.84,104.8,8.5959]
[1770073241962,2.91272188,104.83,104.79,12.05527576]
[1770073244768,2.23985723,104.84,104.8,8.5958]
[1770073244970,2.91272188,104.83,104.8,8.5958]
[1770073246769,2.91272188,104.83,104.79,3.45867576]
[1770073249968,5.15232537,104.83,104.78,8.5969]
[1770073250174,5.15232537,104.83,104.78,12.30445468]
[1770073252569,13.74652537,104.83,104.78,3.70755468]
[1770073253176,5.15232537,104.83,104.78,12.30485468]
[1770073253472,8.5927,104.84,104.79,3.70755468]
[1770073253473,11.50542188,104.84,104.79,3.70755468]
[1770073254279,13.83008728,104.84,104.79,12.30415468]
[1770073255079,5.23738728,104.84,104.79,12.30415468]
[1770073255375,2.91272188,104.83,104.79,3.70755468]
[1770073255577,2.91272188,104.82,104.76,3.70755468]
[1770073256177,2.91272188,104.82,104.78,3.70755468]
[1770073258482,13.83088728,104.83,104.78,12.30495468]
[1770073258681,5.23738728,104.83,104.78,12.30495468]
[1770073260076,5.23738728,104.83,104.79,8.5967]
[1770073260480,47.13562361,104.85,104.78,3.70755468]
[1770073260982,2.91272188,104.84,104.78,3.70755468]
[1770073261181,2.91272188,104.84,104.8,12.30285468]
[1770073262380,47.13562361,104.85,104.8,12.30285468]
[1770073263679,2.91272188,104.83,104.78,3.70755468]
[1770073264075,2.91272188,104.83,104.78,12.30495468]
[1770073264678,2.91272188,104.81,104.76,3.70755468]
[1770073265077,5.57123422,104.81,104.76,3.70755468]
[1770073265280,2.91272188,104.8,104.76,3.70755468]
[1770073266386,2.91272188,104.8,104.76,12.30655468]
[1770073267175,5.57123422,104.81,104.76,12.30655468]
[1770073267981,2.91272188,104.81,104.77,12.30575468]